[Event "Julius Baer Generation Cup Prelims 2022"]
[Site "Online"]
[Date "2022.09.14"]
[Round "13.4"]
[White "Adhiban, B.."]
[Black "Gelfand, Boris"]
[Result "1/2-1/2"]
[ECO "A01"]
[WhiteElo "2603"]
[BlackElo "2668"]
[Annotator "TA"]
[PlyCount "140"]
[EventDate "2022.09.12"]
[EventType "tourn"]
[EventCountry "NET"]
[SourceTitle "playchess.com"]
[Source "ChessBase"]
[SourceQuality "1"]
[TimeControl "900+10"]

{[%evp 9,139,0,0,0,0,0,0,11,9,0,0,0,0,0,0,0,7,0,0,0,0,0,0,0,0,-111,-22,-31,-35,-32,-32,-32,-23,-145,-118,-118,-115,-119,-111,-124,-111,-112,-110,-150,-141,-218,-191,-202,-177,-197,-41,-34,-45,-71,-70,-60,-64,-68,-62,-65,-62,-71,-62,-75,-72,-68,-67,-67,-68,-150,-152,-152,-121,-109,-34,-29968,-58,-76,-76,-60,-16,-16,0,-16,-16,-16,-16,-16,-16,-16,0,0,0,0,0,0,0,0,0,0,0,0,0,0,0,-8,-8,-8,-8,-8,-8,-8,-8,-8,-8,-8,-8,-8,0,0,0,0,0,0,0,0,0,0,0,0,0,0]} 1. b3 {[%emt 0:00:00]} e5 {[%emt 0:00:00]} 2. Bb2 {[%emt 0:00:03]} Nc6 {[%emt 0:00:02]} 3. e3 {[%emt 0:00:01]} g6 {[%emt 0:00:08]} 4. Nf3 {[%emt 0:00:03]} Bg7 {[%emt 0:00:07]} 5. c4 {[%emt 0:00:01]} d6 {[%emt 0:00:10]} 6. Be2 {[%emt 0:00:56] A01: Nimzowitsch-Larsen Opening.} Nf6 {[%emt 0:00:12] has lost popularity (6...f5).} 7. d3 {[%emt 0:00:16]} O-O {[%emt 0:00:18]} 8. Nc3 {[%emt 0:00:02]} d5 {[%emt 0:00:52]} 9. cxd5 {[%emt 0:00:04]} Nxd5 {[%emt 0:00:01]} 10. Nxd5 {[%emt 0:00:01]} Qxd5 {[%emt 0:00:01]} 11. O-O {[%emt 0:00:02]} Rd8 {[%emt 0:01:41] [#]} 12. a3 $146 {[%emt 0:00:05]} ({Predecessor:} 12. Qc2 b6 13. a3 Bb7 14. Rfd1 Rac8 15. Ne1 Qe6 16. Bf3 Na5 17. b4 Bxf3 18. Nxf3 {½-½ (54) Nihal,S (2656)-Klimkowski,J (2350) Cannes 2022}) 12... a5 {[%emt 0:00:02]} 13. Qc2 {[%emt 0:00:10]} Be6 {[%emt 0:02:42]} 14. Nd2 {[%emt 0:00:14]} f5 {[%emt 0:00:01]} 15. Rac1 {[%emt 0:05:04]} e4 {[%emt 0:02:14][%cal Re4d3]} 16. d4 {[%emt 0:00:03][%cal Og2g4]} Qd7 {[%emt 0:00:01]} 17. f3 {[%emt 0:00:50] [#]} (17. Bc4 $11 {remains equal.}) 17... exf3 {[%emt 0:00:19]} (17... Nxd4 $1 $17 {[%mdl 512]} 18. exd4 (18. Bxd4 Bxd4) 18... Bxd4+ 19. Bxd4 Qxd4+ 20. Kh1 Qxd2) 18. Bxf3 {[%emt 0:01:24]} Bd5 {[%emt 0:00:04]} 19. Kh1 {[%emt 0:00:01]} Bxf3 {[%emt 0:01:47]} 20. Nxf3 {[%emt 0:00:03]} Qd5 {[%emt 0:00:03]} 21. g4 {[%emt 0:02:28]} (21. Kg1 $11) 21... fxg4 {[%emt 0:02:33]} 22. e4 {[%emt 0:00:02]} Qh5 {[%emt 0:00:02]} 23. d5 {[%emt 0:00:24] And now Bxg7 would win.} Bxb2 {[%emt 0:00:16]} (23... gxf3 $6 24. Bxg7 Kxg7 25. dxc6 $15) 24. dxc6 {[%emt 0:01:58]} b6 {[%emt 0:01:20]} ({But not} 24... gxf3 $6 25. cxb7 Rab8 26. Qxb2 Rxb7 27. Qc3 $15) (24... Bxa3 $2 25. Qc4+ Kh8 26. cxb7 Bxc1 27. bxa8=R Rxa8 28. Rxc1 $18) 25. Qxb2 {[%emt 0:01:15] Ne5 is the strong threat.} gxf3 {[%emt 0:00:01]} 26. Qc3 {[%emt 0:00:04] Prevents Rd3.} Rf8 {[%emt 0:00:16]} 27. Rcd1 {[%emt 0:00:01]} (27. Qc4+ $17 Kg7 28. Qc3+ Kh6 29. Rcd1) 27... Rf7 {[%emt 0:00:40]} 28. Qc4 {[%emt 0:01:19]} Raf8 {[%emt 0:01:20]} 29. Rd3 {[%emt 0:00:10] [#]} Qc5 $2 {[%emt 0:00:26]} ({Better is} 29... Kg7 $1 $19 {White must now prevent ...Kh6.} 30. Qc3+ Kh6) 30. Qxc5 $15 {[%emt 0:01:08]} bxc5 {[%emt 0:00:01][%mdl 4096] Endgame KRR-KRR} 31. Rd7 {[%emt 0:00:12]} Rb8 {[%emt 0:01:40]} 32. e5 {[%emt 0:00:08]} Re8 {[%emt 0:00:01]} 33. Rd5 {[%emt 0:01:03]} c4 {[%emt 0:00:13]} 34. bxc4 {[%emt 0:00:01]} a4 {[%emt 0:00:01]} 35. Kg1 {[%emt 0:00:32]} Re6 {[%emt 0:00:08]} 36. Ra5 {[%emt 0:00:15]} Rf4 {[%emt 0:00:20]} 37. Rxa4 {[%emt 0:00:08]} Rxe5 {[%emt 0:00:08]} 38. Ra7 {[%emt 0:00:01]} Rf7 {[%emt 0:00:19]} 39. Kf2 {[%emt 0:00:13]} ({White should try} 39. Rb7 $15) 39... Re2+ $17 {[%emt 0:00:17]} 40. Kg3 {[%emt 0:00:01]} Rg2+ {[%emt 0:00:01]} 41. Kh3 {[%emt 0:00:01][%cal Of1f3]} Rg5 {[%emt 0:00:01]} (41... Rc2 $17 {Hoping for ...Kg7.} 42. Ra8+ Kg7) 42. Rb7 $2 {[%emt 0:00:11][%mdl 8192]} (42. Ra8+ $15 Kg7 43. Rd8) 42... Rc5 $2 {[%emt 0:00:32]} (42... f2 {mates} 43. Rxf2 Rxf2 44. Rb8+ Kg7 45. Rb3 Rg1 46. Rg3 Rxg3+ 47. Kxg3 Rc2 48. c5 Rxc5 49. Kf3 Rxc6 50. Ke4 Ra6 51. a4 Rxa4+ 52. Kd5 Rh4 53. h3 Rxh3 54. Kc6 h5 55. Kxc7 g5 56. Kc6 g4 57. Kd6 g3 58. Ke5 g2 59. Ke4 g1=Q 60. Kd5 Kf6 61. Kc6 Qc1+ 62. Kd7 Rd3+ 63. Ke8 Qc8#) 43. Rb3 {[%emt 0:00:12]} f2 {[%emt 0:00:14]} 44. Kg2 {[%emt 0:00:15]} Rg5+ {[%emt 0:00:19]} 45. Rg3 {[%emt 0:00:04] The position is equal.} Rc5 {[%emt 0:00:04]} 46. Rxf2 {[%emt 0:00:14]} Rxc4 {[%emt 0:00:08]} 47. Rxf7 {[%emt 0:00:14]} Kxf7 $11 {[%emt 0:00:02] KR-KR} 48. Rd3 {[%emt 0:00:01]} Rxc6 {[%emt 0:00:01]} 49. Rd7+ {[%emt 0:00:02]} Ke6 {[%emt 0:00:11]} 50. Rxh7 {[%emt 0:00:01]} Rc3 {[%emt 0:00:11]} 51. a4 {[%emt 0:00:05][%cal Ba3a4,Ba4a5,Ba5a6][%mdl 32]} c5 {[%emt 0:00:01]} 52. a5 {[%emt 0:00:04]} Ra3 {[%emt 0:00:01][%cal Bc3a3,Ba3a2,Ba2h2][%mdl 32]} 53. Rg7 {[%emt 0:00:01]} Kf5 {[%emt 0:00:10]} 54. Ra7 {[%emt 0:00:05]} Kg4 {[%emt 0:00:07]} 55. a6 {[%emt 0:00:04]} Ra2+ {[%emt 0:00:02]} 56. Kf1 {[%emt 0:00:08]} Rxh2 {[%emt 0:00:19]} 57. Rc7 {[%emt 0:00:11]} Ra2 {[%emt 0:00:17]} (57... Kf3 {looks sharper.} 58. Kg1 Ra2 59. a7 Ra1+) 58. Rxc5 {[%emt 0:00:05]} (58. a7 {with more complications.} g5 59. Rxc5 Rxa7 60. Rc4+) 58... Rxa6 {[%emt 0:00:02]} 59. Rc3 {[%emt 0:00:03]} g5 {[%emt 0:00:02]} 60. Kg1 {[%emt 0:00:04]} Ra2 {[%emt 0:00:03]} 61. Rb3 {[%emt 0:00:01]} Kf4 {[%emt 0:00:05]} 62. Rc3 {[%emt 0:00:02]} Re2 {[%emt 0:00:02]} 63. Rb3 {[%emt 0:00:03]} Re3 {[%emt 0:00:07]} 64. Rxe3 {[%emt 0:00:20]} Kxe3 {[%emt 0:00:01] KP-K} 65. Kg2 {[%emt 0:00:01]} Kf4 {[%emt 0:00:04][%cal Be3f4,Bf4f3,Bf3g3][%mdl 32]} (65... g4 $5) 66. Kf2 {[%emt 0:00:00]} g4 {[%emt 0:00:01][%cal Bg5g4,Bg4g3,Bg3g2][%mdl 32]} 67. Kg2 {[%emt 0:00:01][%cal Bf2g2,Bg2g1,Bg1f1][%mdl 32]} g3 {[%emt 0:00:01]} (67... Ke3 $5) 68. Kg1 {[%emt 0:00:01]} Kf3 {[%emt 0:00:03] ( -> ...g2)} (68... Ke3 $5) 69. Kf1 {[%emt 0:00:01]} g2+ {[%emt 0:00:00]} 70. Kg1 {[%emt 0:00:00]} Kg3 {[%emt 0:00:01] Weighted Error Value: White=0.27 (precise) /Black=0.19 (very precise)} 1/2-1/2

[Event "Julius Baer Generation Cup Prelims 2022"]
[Site "Online"]
[Date "2022.09.14"]
[Round "13.5"]
[White "Le, Quang Liem"]
[Black "Duda, Jan-Krzysztof"]
[Result "1/2-1/2"]
[ECO "D37"]
[WhiteElo "2728"]
[BlackElo "2731"]
[Annotator "TA"]
[PlyCount "68"]
[EventDate "2022.09.12"]
[EventType "tourn"]
[EventCountry "NET"]
[SourceTitle "playchess.com"]
[Source "ChessBase"]
[SourceQuality "1"]
[TimeControl "900+10"]

{[%evp 12,68,19,18,19,14,21,15,11,22,18,15,18,12,39,14,8,0,2,0,0,0,0,0,0,0,0,0,0,0,0,0,0,0,0,0,0,0,0,0,0,0,0,0,0,0,0,0,0,0,0,0,0,0,0,0,0,0,0]} 1. d4 {[%emt 0:00:00]} Nf6 {[%emt 0:00:00]} 2. c4 {[%emt 0:00:04]} e6 {[%emt 0:00:03]} 3. Nf3 {[%emt 0:00:02]} d5 {[%emt 0:00:01]} 4. Nc3 {[%emt 0:00:02]} Be7 {[%emt 0:00:04]} 5. Bf4 {[%emt 0:00:04]} O-O {[%emt 0:00:03]} 6. e3 {[%emt 0:00:01]} b6 {[%emt 0:00:04]} 7. Bd3 {[%emt 0:00:04]} dxc4 {[%emt 0:00:04] D37: Queen's Gambit Declined: 5 Bf4.} 8. Bxc4 {[%emt 0:00:00]} Ba6 {[%emt 0:00:01]} 9. Qe2 {[%emt 0:00:10]} Bxc4 {[%emt 0:00:13]} 10. Qxc4 {[%emt 0:00:00]} c5 {[%emt 0:00:01]} 11. dxc5 {[%emt 0:00:05]} Bxc5 {[%emt 0:00:08]} 12. O-O {[%emt 0:00:02]} Nbd7 {[%emt 0:01:06]} 13. Rfd1 {[%emt 0:00:04]} Qc8 {[%emt 0:00:30] The position is equal.} 14. Ne5 {[%emt 0:02:21]} Nxe5 {[%emt 0:01:02]} 15. Bxe5 {[%emt 0:00:00]} Be7 {[%emt 0:00:01]} 16. Qa4 {[%emt 0:00:48] [#]} a6 $146 {[%emt 0:01:21]} ({Predecessor:} 16... Qb7 17. Rd2 Rfd8 18. Rad1 h6 19. Bxf6 Rxd2 20. Rxd2 Bxf6 21. Ne4 Be5 22. Rd7 Qc8 {½-½ (33) Kempinski,R (2597)-Fridman,D (2645) Warsaw 2010}) 17. Ne4 {[%emt 0:02:02]} b5 {[%emt 0:00:28]} 18. Nxf6+ {[%emt 0:00:05]} Bxf6 {[%emt 0:00:01]} 19. Qf4 {[%emt 0:00:14]} Bxe5 {[%emt 0:00:04]} 20. Qxe5 {[%emt 0:00:00]} Rd8 {[%emt 0:00:03]} 21. Qe4 {[%emt 0:01:45]} Ra7 {[%emt 0:01:34]} 22. Rac1 {[%emt 0:00:49]} Rad7 {[%emt 0:00:40]} 23. Qb1 $1 {[%emt 0:00:23]} Rxd1+ {[%emt 0:00:12]} 24. Rxd1 $11 {[%emt 0:00:00][%mdl 4096] Endgame KQR-KQR} g6 {[%emt 0:00:06]} 25. g3 {[%emt 0:00:13]} a5 {[%emt 0:00:02]} 26. a3 {[%emt 0:00:33]} b4 {[%emt 0:00:25]} 27. axb4 {[%emt 0:00:05]} axb4 {[%emt 0:00:00]} 28. Rxd8+ {[%emt 0:00:59]} Qxd8 {[%emt 0:00:00] KQ-KQ} 29. Qe4 {[%emt 0:00:23]} Qd2 {[%emt 0:00:32]} 30. Qe5 {[%emt 0:00:04]} Qc1+ {[%emt 0:00:59]} 31. Kg2 {[%emt 0:00:02]} Qc6+ {[%emt 0:00:01]} 32. Kg1 {[%emt 0:00:08]} Qc1+ {[%emt 0:00:03]} 33. Kg2 {[%emt 0:00:01]} Qc6+ {[%emt 0:00:00]} 34. Kg1 {[%emt 0:00:00]} Qc1+ {[%emt 0:00:01] A balanced but interesting game.  Weighted Error Value: White=0.02 (flawless) /Black=0.01 (flawless)} 1/2-1/2

[Event "Julius Baer Generation Cup Prelims 2022"]
[Site "Online"]
[Date "2022.09.14"]
[Round "13.6"]
[White "Navara, David"]
[Black "Ivanchuk, Vasyl"]
[Result "1/2-1/2"]
[ECO "C09"]
[WhiteElo "2681"]
[BlackElo "2678"]
[Annotator "TA"]
[PlyCount "100"]
[EventDate "2022.09.12"]
[EventType "tourn"]
[EventCountry "NET"]
[SourceTitle "playchess.com"]
[Source "ChessBase"]
[SourceQuality "1"]
[TimeControl "900+10"]

{[%evp 12,100,27,23,27,34,29,19,24,25,16,16,21,25,27,20,21,22,40,37,40,31,47,41,132,125,127,123,128,131,134,129,139,131,135,112,118,132,151,88,87,89,89,88,91,50,89,53,66,39,128,12,6,0,0,0,0,0,0,-13,0,0,0,0,0,0,0,0,0,0,0,0,0,0,0,0,0,0,0,0,34,28,43,44,37,0,12,0,17,0,9]} 1. e4 {[%emt 0:00:00]} e6 {[%emt 0:00:00]} 2. d4 {[%emt 0:00:02]} d5 {[%emt 0:00:01]} 3. Nd2 {[%emt 0:00:01]} c5 {[%emt 0:00:08]} 4. Ngf3 {[%emt 0:00:02]} Nc6 {[%emt 0:00:09]} 5. exd5 {[%emt 0:00:08]} exd5 {[%emt 0:00:01]} 6. Bb5 {[%emt 0:00:01]} Qe7+ {[%emt 0:00:09]} 7. Be2 {[%emt 0:00:31]} Qc7 {[%emt 0:00:01] C09: French Tarrasch: 3...c5 4 exd5 exd5 5 Ngf3 Nc6.} ({Don't do} 7... Nxd4 8. Nxd4 cxd4 9. O-O $16) 8. O-O {[%emt 0:00:36]} Nf6 {[%emt 0:00:02]} 9. dxc5 {[%emt 0:00:33]} Bxc5 {[%emt 0:00:01]} 10. Nb3 {[%emt 0:00:01]} Be7 {[%emt 0:00:02]} 11. Bg5 {[%emt 0:00:10]} h6 {[%emt 0:00:36]} 12. Bh4 {[%emt 0:00:08]} O-O {[%emt 0:00:02]} 13. Re1 {[%emt 0:01:01]} Rd8 {[%emt 0:00:36]} 14. c3 {[%emt 0:01:58] [#]} Bf5 $146 {[%emt 0:00:40]} ({Predecessor:} 14... g5 15. Bg3 Qb6 16. Bd3 Ne4 17. Qe2 Bf5 18. Nfd4 Nxd4 19. Nxd4 Bg6 20. f3 Nxg3 21. hxg3 Bxd3 22. Qxd3 {½-½ (28) Legrand,M (2070)-Tieken,F (2128) ICCF email 2015}) 15. Nfd4 {[%emt 0:01:04]} Be4 {[%emt 0:00:02]} 16. f3 {[%emt 0:00:42]} Bg6 {[%emt 0:01:55]} 17. Bd3 {[%emt 0:00:06] aiming for Bxg6.} Ne5 {[%emt 0:00:21] [#]} (17... Nxd4 $14 18. Nxd4 Bc5) 18. Nb5 $1 $16 {[%emt 0:04:21]} Qb6+ {[%emt 0:00:04]} 19. Bf2 {[%emt 0:00:01]} Qxf2+ {[%emt 0:00:02]} 20. Kxf2 {[%emt 0:00:00]} Nxd3+ {[%emt 0:00:01]} 21. Kg1 {[%emt 0:00:04]} Nxe1 {[%emt 0:00:01]} 22. Qxe1 {[%emt 0:00:01]} Bf8 {[%emt 0:00:03]} 23. Qd2 {[%emt 0:00:55]} a6 {[%emt 0:00:21]} 24. N5d4 {[%emt 0:00:02]} Nd7 {[%emt 0:00:31]} 25. Na5 {[%emt 0:00:46] Pair of Knights!} (25. Ne2 $142) 25... Nb6 {[%emt 0:01:17]} 26. Re1 {[%emt 0:01:11] White is more active.} Nc4 {[%emt 0:01:07]} 27. Nxc4 {[%emt 0:00:02]} dxc4 {[%emt 0:00:01]} 28. Qe2 {[%emt 0:01:28]} Rac8 {[%emt 0:02:47]} 29. h4 {[%emt 0:00:24]} b5 {[%emt 0:00:26]} 30. a3 {[%emt 0:00:41]} Rd5 {[%emt 0:00:22] [#]} ({Black should play} 30... Bd6 $14) 31. Qf2 {[%emt 0:00:36]} (31. f4 $1 $16) 31... Bc5 {[%emt 0:00:12]} 32. Kh1 {[%emt 0:00:21]} a5 {[%emt 0:01:50]} 33. Qd2 {[%emt 0:01:20]} b4 {[%emt 0:00:19]} 34. axb4 {[%emt 0:00:00]} axb4 {[%emt 0:00:01]} 35. Rc1 {[%emt 0:00:22]} Rcd8 {[%emt 0:02:17]} 36. Qe1 {[%emt 0:00:03]} bxc3 {[%emt 0:00:02]} 37. bxc3 {[%emt 0:00:01]} Bxd4 {[%emt 0:00:01]} 38. cxd4 {[%emt 0:00:00]} Rxd4 {[%emt 0:00:01]} 39. Qe7 {[%emt 0:00:13][%cal Oc1c4]} Rc8 {[%emt 0:01:16]} 40. Rc3 {[%emt 0:00:44]} h5 {[%emt 0:00:56]} 41. Kh2 {[%emt 0:00:09]} Kh7 {[%emt 0:00:05]} 42. Kg3 {[%emt 0:00:06]} Rc6 {[%emt 0:00:38]} 43. Qb7 {[%emt 0:00:23]} Rc5 {[%emt 0:00:43]} 44. Qb4 {[%emt 0:00:06]} Rc8 {[%emt 0:00:05]} 45. Qb7 {[%emt 0:00:07]} Rcd8 {[%emt 0:00:18]} 46. Qc7 {[%emt 0:00:28][%mdl 1024] White has compensation.} R8d7 {[%emt 0:00:08]} 47. Qc5 {[%emt 0:00:02]} R7d5 {[%emt 0:00:11]} 48. Qc7 {[%emt 0:00:01]} Rd7 {[%emt 0:00:06] The position is equal.} 49. Qc5 {[%emt 0:00:02]} R7d5 {[%emt 0:00:02]} 50. Qc7 {[%emt 0:00:01]} Rd7 {[%emt 0:00:02] Weighted Error Value: White=0.10 (very precise) /Black=0.10 (very precise)} 1/2-1/2

[Event "Julius Baer Generation Cup Prelims 2022"]
[Site "Online"]
[Date "2022.09.14"]
[Round "13.7"]
[White "Niemann, Hans Moke"]
[Black "Saric, Ivan"]
[Result "0-1"]
[ECO "E71"]
[WhiteElo "2688"]
[BlackElo "2668"]
[Annotator "TA"]
[PlyCount "98"]
[EventDate "2022.09.12"]
[EventType "tourn"]
[EventCountry "NET"]
[SourceTitle "playchess.com"]
[Source "ChessBase"]
[SourceQuality "1"]
[TimeControl "900+10"]

{[%evp 9,98,31,56,35,38,15,31,-12,16,16,0,0,12,0,8,0,0,0,0,0,0,0,0,0,0,-76,-71,-69,-50,-97,-31,-31,-31,-31,-31,-31,-30,-47,-47,-47,-44,-71,-74,-79,-57,-46,-41,-38,-32,-41,-26,-57,-56,-50,-37,-37,0,-5,0,-32,-18,-20,-23,-43,-25,-54,-52,-78,-78,-78,-79,-191,-167,-272,-260,-263,-267,-341,-339,-428,-428,-398,-343,-550,-298,-376,0,-551,-536,-474,-291]} 1. d4 {[%emt 0:00:00]} Nf6 {[%emt 0:00:00]} 2. c4 {[%emt 0:00:02]} g6 {[%emt 0:00:01]} 3. Nc3 {[%emt 0:00:03]} Bg7 {[%emt 0:00:01]} 4. e4 {[%emt 0:00:01]} d6 {[%emt 0:00:01]} 5. h3 {[%emt 0:00:01]} e5 {[%emt 0:00:00]} 6. d5 {[%emt 0:00:05] E71: King's Indian: 4 e4 d6 5 h3.} a5 {[%emt 0:00:01]} 7. g4 {[%emt 0:00:09]} Na6 {[%emt 0:00:08]} 8. Nge2 {[%emt 0:00:01] White is slightly better.} Nd7 {[%emt 0:00:05]} (8... h5 $5 {[%cal Rh5g4]}) 9. Be3 {[%emt 0:00:40]} Bf6 {[%emt 0:00:08]} 10. Qd2 {[%emt 0:00:05]} h6 {[%emt 0:00:01] Prevents g5.} 11. O-O-O {[%emt 0:00:52]} ({Don't blunder} 11. Bxh6 $2 g5 12. Bxg5 Bxg5 $19) 11... Bg5 {[%emt 0:01:53]} 12. f4 {[%emt 0:00:11]} exf4 {[%emt 0:00:02]} 13. Nxf4 {[%emt 0:00:01]} Ne5 {[%emt 0:00:09]} 14. Be2 {[%emt 0:00:26] [#]} Bd7 $146 {[%emt 0:00:51]} ({Predecessor:} 14... Qe7 15. Nb5 b6 16. Rh2 Bd7 17. Rdh1 Bh4 18. Nd4 Nc5 19. Qc2 O-O-O 20. Kb1 Rde8 {0-1 (41) Batsiashvili,N (2447)-Praggnanandhaa,R (2586) Sitges 2019}) 15. Kb1 {[%emt 0:00:09]} Qe7 {[%emt 0:00:21]} 16. Nb5 {[%emt 0:01:58]} b6 {[%emt 0:00:28]} 17. Ka1 {[%emt 0:02:31]} (17. Nc3 $11 {keeps the balance.}) 17... Bxb5 $17 {[%emt 0:00:25]} 18. cxb5 {[%emt 0:00:02]} Nc5 {[%emt 0:00:01]} 19. Qc2 {[%emt 0:00:11]} (19. Bxc5 $15 {deserves consideration.} bxc5 20. Rhf1) 19... O-O-O {[%emt 0:00:55]} (19... Ned7 $17 20. Bf3 a4) 20. Bxc5 $15 {[%emt 0:02:15]} dxc5 {[%emt 0:00:34]} 21. Nd3 {[%emt 0:00:03]} Bf6 {[%emt 0:00:26]} 22. Rhf1 {[%emt 0:00:13]} Rd6 {[%emt 0:00:07]} 23. Rf2 {[%emt 0:00:26]} Nxd3 {[%emt 0:00:18]} 24. Bxd3 {[%emt 0:00:04]} h5 {[%emt 0:00:22]} 25. Rdf1 {[%emt 0:00:36][%cal Og4g5]} hxg4 {[%emt 0:00:11]} 26. hxg4 {[%emt 0:00:00]} Qe5 {[%emt 0:00:11]} 27. a3 {[%emt 0:00:19]} Kb8 {[%emt 0:00:37]} 28. Ka2 {[%emt 0:00:08][%cal Oc2c3]} Rh3 {[%emt 0:00:13][%cal Bh8h3,Bh3g3,Bg3e3,Be3e4,Be4f4,Bf4f3][%mdl 32]} 29. Bc4 {[%emt 0:00:51]} Rg3 {[%emt 0:00:15]} 30. Be2 {[%emt 0:00:12]} Re3 {[%emt 0:00:28]} 31. Bd3 {[%emt 0:00:23]} Qd4 {[%emt 0:01:02]} 32. Rd1 {[%emt 0:00:08]} c4 {[%emt 0:01:10]} 33. Bxc4 {[%emt 0:00:36]} Qxe4 {[%emt 0:00:09]} 34. Qxe4 {[%emt 0:01:25]} Rxe4 {[%emt 0:00:00]} 35. Be2 {[%emt 0:00:15]} Be5 {[%emt 0:00:59]} 36. Bf3 {[%emt 0:00:46]} Rf4 {[%emt 0:00:13]} 37. Re2 {[%emt 0:00:04]} Bxb2 {[%emt 0:01:05]} 38. Kxb2 {[%emt 0:00:15]} Rxf3 {[%emt 0:00:01][%mdl 4096] Endgame KRR-KRR} 39. Re8+ {[%emt 0:00:01]} Kb7 {[%emt 0:00:01] White must now prevent ...a4.} 40. Re7 {[%emt 0:00:00]} (40. a4 $17) 40... Kc8 $19 {[%emt 0:00:53]} 41. a4 {[%emt 0:01:08]} (41. Rc1 $142) 41... Kd8 {[%emt 0:01:25]} 42. Re4 {[%emt 0:00:12]} Rdf6 {[%emt 0:01:15]} 43. Rde1 {[%emt 0:00:46]} Rf2+ {[%emt 0:01:10]} 44. Kc3 {[%emt 0:00:23]} R6f3+ {[%emt 0:00:01]} 45. Kd4 {[%emt 0:00:01]} Rd2+ {[%emt 0:01:46]} 46. Kc4 $2 {[%emt 0:00:26]} (46. Ke5 {was forced.} Kd7 47. Rc4) 46... Rc2+ {[%emt 0:00:13]} 47. Kd4 {[%emt 0:00:02]} Rd2+ {[%emt 0:00:00]} (47... Ra2 $142 {...Kd7 is the strong threat.} 48. d6 Rxa4+ 49. Ke5 Rxe4+ 50. Kxe4 Rb3) 48. Kc4 {[%emt 0:00:01]} Ra2 {[%emt 0:00:01][%cal Ra2a4] [#]} 49. d6 {[%emt 0:01:11]} Rxa4+ {[%emt 0:00:06] Weighted Error Value: White=0.22 (precise) /Black=0.22 (precise)} 0-1

[Event "Julius Baer Generation Cup Prelims 2022"]
[Site "Online"]
[Date "2022.09.14"]
[Round "13.8"]
[White "Aronian, Levon"]
[Black "Praggnanandhaa R"]
[Result "1-0"]
[ECO "A34"]
[WhiteElo "2759"]
[BlackElo "2676"]
[Annotator "TA"]
[PlyCount "89"]
[EventDate "2022.09.12"]
[EventType "tourn"]
[EventCountry "NET"]
[SourceTitle "playchess.com"]
[Source "ChessBase"]
[SourceQuality "1"]
[TimeControl "900+10"]

{[%evp 9,89,0,0,0,0,0,0,0,0,0,0,6,11,0,8,8,35,18,9,35,43,30,27,22,37,25,26,12,20,11,57,66,89,87,92,80,83,87,81,73,68,66,66,92,94,63,91,0,2,0,84,77,115,112,117,39,45,39,37,30,30,30,30,30,30,8,8,0,0,0,262,262,511,511,29975,29976,29977,29979,29987,29984,29982,29983]} 1. c4 {[%emt 0:00:00]} c5 {[%emt 0:00:00]} 2. Nc3 {[%emt 0:00:04]} Nf6 {[%emt 0:00:03]} 3. Nf3 {[%emt 0:00:19]} Nc6 {[%emt 0:00:03]} 4. e3 {[%emt 0:00:21]} e6 {[%emt 0:00:04][%cal Be7e6,Be6d5,Bd5d4][%mdl 32]} 5. b3 {[%emt 0:00:06]} d5 {[%emt 0:00:30]} 6. cxd5 {[%emt 0:00:01] A34: Symmetrical English: 2 Nc3, lines with ...d5.} exd5 {[%emt 0:00:01]} 7. Bb2 {[%emt 0:00:01]} d4 {[%emt 0:00:25]} 8. Na4 {[%emt 0:00:02] The position is equal.} Bd7 {[%emt 0:00:01]} 9. Rc1 {[%emt 0:00:35]} b6 {[%emt 0:00:03]} 10. exd4 {[%emt 0:00:22]} Nxd4 {[%emt 0:00:42]} 11. Nxd4 {[%emt 0:00:07]} cxd4 {[%emt 0:00:01] [#]} 12. Bxd4 $146 {[%emt 0:00:28]} ({Predecessor:} 12. Ba6 Be7 13. Bxd4 Bg4 14. Qc2 O-O 15. Bxf6 Bxf6 16. O-O {½-½ (40) Kurylo,R (2317)-Crielesi,G (2303) ICCF email 2018}) 12... Be7 {[%emt 0:00:38]} 13. Bb2 {[%emt 0:01:32]} O-O {[%emt 0:00:13]} 14. Be2 {[%emt 0:00:01]} Nd5 {[%emt 0:04:14]} 15. O-O {[%emt 0:00:39]} Nf4 {[%emt 0:00:04]} 16. Bf3 {[%emt 0:00:56]} Rc8 {[%emt 0:00:19]} 17. Rxc8 {[%emt 0:00:31]} Bxc8 {[%emt 0:01:16]} 18. Qa1 {[%emt 0:00:35]} f6 {[%emt 0:00:41]} 19. d4 {[%emt 0:00:56]} Qd7 {[%emt 0:00:37]} (19... Ba6 $11) 20. Bc1 $14 {[%emt 0:00:25]} Bd6 {[%emt 0:01:04]} 21. Bxf4 {[%emt 0:01:12]} Bxf4 {[%emt 0:00:03]} 22. Rd1 {[%emt 0:00:01][%cal Bf1d1,Bd1d7,Bd7a7][%mdl 32]} Ba6 {[%emt 0:01:10]} 23. g3 {[%emt 0:00:29]} Bd6 {[%emt 0:00:14] [#]} 24. Nc5 $1 {[%emt 0:00:50]} bxc5 {[%emt 0:01:55]} 25. dxc5 {[%emt 0:00:00][%mdl 64] Discovered Attack} Be5 {[%emt 0:00:00]} 26. Rxd7 {[%emt 0:00:02] White threatens Qd1 and mate.} Bxa1 {[%emt 0:00:01]} 27. Rxa7 {[%emt 0:00:01] White has more active pieces.} Bd3 {[%emt 0:00:41]} 28. a4 {[%emt 0:00:25]} ({White should play} 28. Bd5+ $16 Kh8 29. c6) 28... Re8 $11 {[%emt 0:00:47] ( -> ...Re1+)} 29. h4 {[%emt 0:00:24]} Bc3 {[%emt 0:00:44]} (29... Kf8 $11 {remains equal.}) 30. c6 {[%emt 0:02:00]} g5 {[%emt 0:00:43]} 31. hxg5 {[%emt 0:00:35]} fxg5 {[%emt 0:00:02]} 32. Rd7 {[%emt 0:00:22]} ({White should try} 32. c7 $16 {Hoping for Bg4.} Bf5 33. a5) 32... Ba6 {[%emt 0:00:48]} 33. Bd5+ {[%emt 0:00:34]} Kh8 {[%emt 0:00:02]} 34. c7 {[%emt 0:00:04] Black must now prevent Rd8.} Ba5 {[%emt 0:00:12]} 35. b4 {[%emt 0:00:28]} Bxb4 {[%emt 0:00:07]} (35... Bc8 $2 {[#]} 36. bxa5 $1 Bxd7 37. a6 $18) 36. Rd8 {[%emt 0:00:02]} Rf8 {[%emt 0:00:02]} 37. Bc4 {[%emt 0:00:01][%mdl 1024] White has compensation.} Bc8 {[%emt 0:00:38]} 38. a5 {[%emt 0:00:15][%cal Ba4a5,Ba5a6,Ba6a7][%mdl 32]} Kg7 {[%emt 0:00:56]} 39. Rd5 {[%emt 0:00:24] And now a6 would win.} h6 $2 {[%emt 0:01:00][%mdl 8192]} (39... Be1 $11 {and Black stays safe.} 40. Rxg5+ Kh8) 40. a6 $18 {[%emt 0:00:06]} Be1 $2 {[%emt 0:00:03]} (40... Bh3 41. Bb5 Ba5) 41. f4 $1 {[%emt 0:00:25][%mdl 64] Threatens to win with a7. Promotion} gxf4 {[%emt 0:00:34]} (41... Be6 $18 42. Rd8 Ba5 43. Rxf8 (43. Bxe6 Rxd8 44. cxd8=N Bxd8 $16) 43... Bxc7) 42. a7 {[%emt 0:00:02] White mates.} ({Avoid the trap} 42. Rd8 $2 Ba5 43. gxf4 Bxc7 44. Rxf8 Kxf8 $19) 42... Bb7 {[%emt 0:00:13]} 43. Rd8 {[%emt 0:00:38]} Bb4 {[%emt 0:00:14]} 44. Rxf8 {[%emt 0:00:12]} Bc5+ {[%emt 0:00:10]} 45. Kf1 {[%emt 0:00:02] Weighted Error Value: White=0.08 (flawless) /Black=0.46} 1-0